{"text_format":"3","workbook":"xlsx","n_sheets":3,"sheets":["Лист1","Лист2","Лист3"],"read":"whole","date_system":"1900"}

{"sheet":"Лист1","index":0,"n_rows":96,"n_cols":5,"rows_kept":96}
[]
["№","ФИО  участника","Школа","Предмет","Контакты "]
["1.","Малышева Майя Александровна","МОУ \"Гимназия № 9\"","Риторика","т.д. 52-38-04. с. 8 904 071 07 38"]
["2.","Еськина Анна Витальевна","МОУ СОШ № 123","Русский язык","т.д. 67-11-23, с. 8 905 923 74 18"]
["3.","Першаева Юлия Ивановна","МОУ \"Нижнеомская СОШ № 2\"","Математика","с. 8 904 324 40 32"]
["4.","Фирсина Александра Евгеньевна","МОУ \"Сосновская СОШ\" Тавричанка","Окружающий мир","т.д. 83815135644 с. 8 960 984 46 25"]
["5.","Щеглова Татьяна Николаевна","МОУ \"Лицей № 143\"","Русский язык","т. 70- 89 -05"]
["6.","Бурюкина Надежда Ивановна","МОУ \"Любинская СОШ № 1\"","Математика","с. 8 908 100 33 79"]
["7.","Скуднова Валерия Алексеевна","МОУ \"Красноярская СОШ\" Любино","Математика "]
["8.","Жданова Людмила Ивановна","МОУ СОШ № 94","Чтение"]
["9.","Цербе Галина Васильевна","МОУ \"Гимназия № 12\"","Чтение"]
["10.","Мартьянова Раиса Михайловна","МОУ \"Прииртышская СОШ\" Тавричанка ","Русский язык"]
["11.","Айтжанова Тлектес Каримовна","МОУ \"Прииртышская СОШ\" Тавричанка ","Русский язык"]
["12.","Горина Елена Анатольевна","МОУ \"Прииртышская СОШ\" Тавричанка ","Математика","с. 8 906 992 13 82"]
["13.","Лиманская Елена Владимировна","МОУ \"Большереченская ООШ\"","Математика"]
[{"$nulls":3},"Чтение"]
["14.","Рыбина Татьяна Александровна","МОУ СОШ № 118","Чтение"]
["15.","Еремеева Оксана Жоржевна","МОУ СОШ № 118","Русский язык"]
["16.","Вергунова Валентина Геннадьевна","МОУ \"Михайловская СОШ\" Кормиловка","Русский язык","т.р. 8 38170 3 57 77"]
["17.","Мезенцева Татьяна Анатольевна","МОУ \"Михайловская СОШ\" Кормиловка","Математика","т.р. 8 38170 3 57 77"]
["18.","Зыркина Ирина Валерьевна","МОУ \"Екатеринославская СОШ\" Шербакуль","Литература"]
["19.","Вдовина Татьяна Ивановна","МОУ ДО \"Детский сад № 336\"","Окружающий мир","с. 8 904 58 00 642"]
[null,"Давыдик Ольга Леонидовна "]
["20.","Топчеева Наталья Владимировна","МОУ СОШ № 54","География","с. 8 903 983 12 44"]
["21.","Выходцева Елена Михайловна","МОУ \"Сибирская СОШ № 1\"","Окружающий мир","с. 8 908 317 29 73"]
["22.","Щербинина Евгения Владимировна","МОУ \"Сибирская СОШ № 1\"","Русский язык  ","с. 8 923 693 38 99"]
["23.","Перепелицына Марина Владимировна","МОУ \"Сибирская СОШ № 1\"","Математика","с. 8 913 962 47 15"]
["24.","Шутова Наталья Геннадьевна","МОУ \"Гимназия № 43\"","Математика","с. 8 904 580 60 06, т.д. 46 47 26"]
["25.","Юрьева Нина Ивановна","МОУ СОШ № 38","Окружающий мир","с. 8 913 967 72 77, т.д. 37 69 87"]
["26.","Рыбкина Марина Викторовна","МОУ СОШ № 112","Окружающий мир","с. 8 908 106 22 36"]
["27.","Нагибина Ирина Николаевна","МОУ СОШ № 63","Окружающий мир","с. 8 904 322 04 53"]
["28.","Хондыч Наталья Юрьевна","МОУ СОШ № 50","Окружающий мир","с. 8 904 588 30 40, 8 905 099 27 57"]
["29.","Разенкова Зинаида Михайловна","МОУ СОШ № 60","Русский язык","с. 8 951 422 15 58"]
["30.","Христич Эльза Витальевна","МОУ СОШ № 80","Русский язык","д. 69 68 34"]
["31.","Федоренко Ирина Ивановна ","МОУ СОШ № 33 ","Русский язык"]
["32.","Урхова Жанна Брониславовна","МОУ СОШ № 33 ","Русский язык"]
["33.","Курильчик Светлана Николаевна","МОУ СОШ № 38","Русский язык","с. 8 908 799 20 75"]
["34.","Таскаева Людмила Аркадьевна","МОУ СОШ № 80","Русский язык","д. 65 84 82"]
["35.","Никитина Наталья Николаевна","МОУ СОШ № 80",null,"д. 64 38 26"]
["36.","Сокольникова Татьяна Викторовна","МОУ СОШ № 142","Чтение","с. 8 951 412 51 97, д. 54 04 45"]
["37.","Лукина Елена Николаевна","МОУ СОШ № 142","Русский язык","с. 8 913 608 84 50"]
["38.","Кирина Ирина Александровна","МОУ СОШ № 142","Окружающий мир (5)","с. 8 904 076 83 88"]
["39. ","Пирогова Елена Леонидовна","МОУ \"Солнцевская СОШ\" Исилькуль","Русский язык"]
["40.","Дефлер Нина Антоновна","МОУ \"Солнцевская СОШ\" Исилькуль","Русский язык"]
["41.","Кушнерова  Татьяна Владимировна","МОУ \"Боевая СОШ\" Исилькуль","Чтение","с. 8 913 670 07 20"]
["42.","Лакеенко Алла Владимировна","МОУ \"Боевая СОШ\" Исилькуль","Русский язык","с. 8 913 670 07 20"]
["43.","Смирнова Марина Владимировна","МОУ СОШ № 49","Окружающий мир","с. 8 905 944 57 24"]
["44.","Исаенко Ольга Николаевна","МОУ СОШ № 80","Потфолио"]
["45.","Шамова Светлана Александровна","МОУ СОШ № 5","Портфолио"]
["46.","Баженова Галина Ивановна","МОУ СОШ № 5","Портфолио"]
["47.","Клебанова Татьяна Владимировна","МОУ СОШ № 5","Портфолио"]
["48.","Дворцова Ирина Викторовна","МОУ СОШ № 72","Математика","д. 23 76 87"]
["49.","Федорова Татьяна Викторовна","МОУ СОШ № 72","Математика"]
["50.","Бородихина Татьяна Владимировна","МОУ СОШ № 120","Русский язык"]
["51.","Мазурова Надежда Николаевна","МОУ СОШ № 120","Математика","д. 67 91 25"]
["52.","Ивашкина Г.Н.  ","НОЧУ \"СО Лицей\"","Портфолио"]
["53.","Новицкая Ирина Викторовна","НОЧУ \"СО Лицей\"","Портфолио","д. 62 50 23"]
["54.","Шипилина Марина Николаевна","НОЧУ \"СО Лицей\"","Портфолио"]
["55.","Фищенко Людмила Ивановна","МОУ СОШ № 98","Портфолио","с. 8 923 673 69 12"]
["56.","Тапешко Людмила Викторовна","МОУ СОШ № 98","Портфолио","с. 8 908 796 06 99, д. 64 51 02"]
["57.","Губич Наталья Сергеевна","МОУ \"Сибирская СОШ № 1\"","Русский язык","д. 96 19 13"]
["58.","Бирюлина Алевтина Анатольевна","МОУ СОШ № 54","Русский язык","д. 76 92 20"]
["59.","Папп Ольга Владимировна","МОУ СОШ № 54","Математика"]
["60.","Рязанова Наталья Викторовна ","МОУ СОШ № 54","Математика"]
["61.","Ямзина Ирина Васильевна","МОУ \"Лицей № 143\"","Окружающий мир","с. 8 950 781 56 92"]
["62.","Блинова Алена Валерьевна","Славянская школа","Портфолио"]
["63.","Черкасова Лариса Николаевна","МОУ СОШ № 54","Элективный курс (9)","с. 8 960 991 95 52"]
["64.","Коротких Людмила Геннадьевна","МОУ СОШ № 110","Окружающий мир","д. 42 56 98"]
["65.","Дёмина Валентина Васильевна","МОУ СОШ № 37","Окружающий мир","с. 8 908 119 07 24"]
["66.","Панченко Татьяна Владимировна","МОУ \"Гимназия № 9\"","Чтение Портфолио"]
[null,"Коньшина Татьяна Валерьевна","МОУ \"Гимназия № 9\"","Чтение Портфолио"]
["67.","Кель Тамара Васильевна","МОУ СОШ № 161","Портфолио","с. 8 908 108 72 92, д. 72 86 76"]
["68.","Багдасарова Елена Георгиевна","МОУ СОШ № 161","Портфолио"]
["69.","Сырых Наталья Федоровна","МДОУ \"Детский сад № 51\"",null,"р. 56 53 53"]
["70.","Грязнова Наталья Георгиевна","МОУ СОШ № 77","Портфолио","23 78 46"]
["71.","Кудрявцева Екатерина Ивановна","МОУ СОШ № 28","Портфолио"]
["72.","Сас Е.А.","МОУ СОШ № 32","Русский язык"]
["73.","Хусаинова Куралай Галиевна","МОУ \"Москаленский лицей\"","Русский язык"]
["74.","Рымина Любовь Николаевна","МОУ \"Москаленский лицей\"","Русский язык"]
["75.","Виндерская Марина Геннадьевна","МОУ \"Гимназия № 76\"","Окружающий мир"]
["76.","Куратова Светлана Сергеевна","МОУ \"Иртышская СОШ\" Черлак","Портфолио"]
["77.","Мартынова Елена Гейнриховна","МОУ \"Иртышская СОШ\" Черлак","Математика","с. 8 905 098 85 15"]
["78.","Максименко Ирина Васильевна ","МОУ СОШ № 142","Русский язык"]
["79.","Кириевская Юлия Владимировна","МОУ СОШ № 151","Русский язык"]
["80.","Евланова Татьяна Викторовна","МОУ СОШ № 133","Математика","д. 64 17 76 "]
["81.","Щетинина Валентина Ивановна","МОУ СОШ № 133","Русский язык","д. 69 25 70"]
["82.","Вилемсон Надежда Александровна","МОУ СОШ № 37","Окружающий мир"]
["83.","Лебедева Ольга Валентиновна","МОУ СОШ № 45","Математика","д. 57 21 04"]
["84.","Машталер Ольга Николаевна","МОУ СОШ № 45","Математика (?)","с. 8 913 960 43 29"]
["85.","Лаптева Людмила Тимофеевна","МОУ СОШ № 28","Русский язык","с. 8 908 806 12 03"]
["86.","Бабасова Шикир","МОУ СОШ № 28","Портфолио","д. 74 15 86"]
["87.","Рожкова Наталья Елиферьевна","МОУ СОШ № 28","Математика","д. 74 46 83"]
["88.","Больбот Ольга Александровна","МОУ СОШ № 151","Русский язык"]
["89.","Волкович Татьяна Владимировна","МОУ СОШ № 151","Русский язык"]
["90.","Марахина Ирина Николаевна","МОУ СОШ № 60","Портфолио"]
["91.","Чернякова Оксана Викторовна","МОУ СОШ № 60","Портфолио","д. 21 17 93, с. 8 913 641 88 32"]

{"sheet":"Лист2","index":1,"n_rows":159,"n_cols":7,"rows_kept":159,"merged":[[0,0,0,6],[44,0,44,6],[54,0,54,6],[70,0,70,6],[78,0,78,6],[88,0,88,6],[111,0,111,6],[122,0,122,6],[140,0,140,6],[146,0,146,6],[155,0,155,6]]}
["Русский язык нач. школа"]
["№","ФИО","Барсукова","Плахотник","Бурцева","Кветко","Итого"]
["1.","Айтжанова Т.К.",8,8,44,null,{"$f":"SUM(C3:F3)","v":60}]
["2.","Больбот О.А.",20,0,49,null,{"$f":"SUM(C4:F4)","v":69}]
["3.","Бородихина Т.В.",41,42,68,null,{"$f":"SUM(C5:F5)","v":151}]
["4.","Вергунова В.Г.",10,9,null,52,{"$f":"SUM(C6:F6)","v":71}]
["5.","Волкович Т.В."]
["6.","Губич Н.С.",12,12,51,50,{"$f":"SUM(C8:F8)","v":125}]
["7.","Дефлер Н.А.",54,30,null,69,153]
["8.","Еремеева О.Ж.",12,17,null,70,99]
["9.","Кириевская Ю.В.",28,24,62,null,114]
["10.","Лакеенко А.В.",10,14,null,61,85]
["11.","Лаптева Л.Т.",10,9,50,null,69]
["12.","Лукина Е.Н.",21,21,62,null,104]
["13.","Максименко И.В.",29,18,null,52,99]
["14.","Мартьянова Р.М.",13,12]
["15.","Пирогова Е.Л.",17,17,null,50,{"$f":"SUM(C17:F17)","v":84}]
["16.","Разенкова З.М.",26,15,60,null,{"$f":"SUM(C18:F18)","v":101}]
["17.","Рымина Л.Н.",10,6,null,39,{"$f":"SUM(C19:F19)","v":55}]
["18.","Таскаева Л.А."]
["19.","Урхова Ж.Б.",26,34,46,null,{"$f":"SUM(C21:F21)","v":106}]
["20.","Федоренко И.И."]
["21.","Христич Э.В.",23,29,51,null,{"$f":"SUM(C23:F23)","v":103}]
["22.","Хусаинова К.Г.",10,11,null,54,{"$f":"SUM(C24:F24)","v":75}]
["23.","Щеглова Т.Н.",17,17,61,null,{"$f":"SUM(C25:F25)","v":95}]
["24.","Щербинина Е.В.",26,23,null,45,{"$f":"SUM(C26:F26)","v":94}]
["25.","Щетинина В.И.",35,46,60,null,{"$f":"SUM(C27:F27)","v":141}]
["26.","Бирюлина А.А.",18,14]
["27.","Сас Е.А.",9,9,43,null,{"$f":"SUM(C29:F29)","v":61}]
["28.","Марахина М.Н.",14,17,42,null,{"$f":"SUM(C30:F30)","v":73}]
["29.","Черникова О.В.",37,null,null,49]
["30.","Никитина Н.И.",24,25,36,null,{"$f":"SUM(C32:F32)","v":85}]
{"$rows_empty":12}
["Русский язык - основная школа"]
["№","ФИО"]
["1.","Еськина А.В.",26,31,52,null,{"$f":"SUM(C47:F47)","v":109}]
["2.","Клебанова Т.В.",16,0,31,null,{"$f":"SUM(C48:F48)","v":47}]
[]
[]
[]
[]
[]
[]
["Литературное чтение - нач. школа"]
["№","ФИО","Гордиенко","Калашникова","Кветко"]
["1.","Панченко Т.В.",57,61,59,null,{"$f":"SUM(C57:F57)","v":177}]
["2.","Сокольникова Т.В.",47,61,55,null,163]
["3.","Жданова Л.И.",54,57,43,null,154]
["4.","Лиманская Е.В.",37,52,54,null,143]
["5.","Кушнерова Т.В.",47,60,34,null,141]
["6.","Рыбина Т.А.",38,58,21,null,117]
["7.","Цербе Г.В.",36,42,19,null,97]
{"$rows_empty":7}
["Литературное чтение - осн. школа"]
["№","ФИО"]
["1.","Зыркина И.В. ",null,55,54,null,{"$f":"SUM(D73:F73)","v":109}]
[]
[]
[]
[]
[]
["Риторика"]
["№","ФИО"]
["1.","Малышева М.А.",null,50,53,null,{"$f":"SUM(D81:F81)","v":103}]
{"$rows_empty":7}
["Математика - нач. школа"]
["№","ФИО","Чеховская","Борисова","Иванова"]
["1.","Шутова Н.Г.",35,34,35,null,{"$f":"SUM(C91:F91)","v":104}]
["2.","Тапешко Л.В.",35,32,37,null,104]
["3.","Рожкова Н.Е. ",27,34,34,null,95]
["4.","Перепелицына М.В.",31,25,35,null,91]
["5.","Фищенко Л.И.",29,30,24,null,83]
["6.","Бурюкина Н.И.",24,21,20,null,65]
["7.","Ивашкина Г.Н.",23,23,18,null,64]
["8.","Мазурова  Н.Н.",10,18,14,null,42]
["9.","Багдасарова Е.Г.",12,7,12,null,31]
["10.","Лиманская Е.В.",11,8,12,null,31]
["11.","Першаева Ю.И.",4,22,4,null,30]
["12.","Маштелер О.Н.",7,10,7,null,24]
["13.","Федорова Т.В.",8,6,9,null,23]
["14.","Мезенцева Т.А.",5,7,5,null,17]
["15.","Скуднова В.А. ",5,5,6,null,16]
["16.","Дворцова И.В.",5,5,6,null,16]
["17.","Евланова Т.В.",2,6,3,null,11]
[]
[]
[]
[]
["Математика - осн. школа"]
["№","ФИО"]
["1.","Черкасова Л.Н.",65,41,56,null,{"$f":"SUM(C114:F114)","v":162}]
["2.","Рязанова Н.В.",37,38,37,null,112]
["3.","Папп О.В.",41,27,39,null,107]
["4.","Шамова С.А.",18,35,35,null,88]
["5.","Мартынова Е.Г.",30,25,32,null,87]
["6.","Лебедева О.В.",8,28,8,null,44]
["7.","Кель  Т.В.",5,19,11,null,35]
["8.","Горина Е.А. ",5,10,9,null,24]
[]
["Окружающий мир - нач. школа"]
["№","ФИО","Вирясова","Полищук","Дашьянц"]
["1.","Курильчик С.Н.",65,null,54,null,{"$f":"SUM(C125:F125)","v":119}]
["2.","Демина В.В.",53,null,42,null,95]
["3.","Виндерская М.Г.",43,null,43,null,86]
["4.","Юрьева Н.И.",39,null,41,null,80]
["5.","Вилемсон Н.А.",28,null,50,null,78]
["6.","Нагибина И.Н.",24,null,53,null,77]
["7.","Смирнова М.В.",18,null,46,null,64]
["8.","Хондыч Н.Ю.",29,null,35,null,64]
["9.","Выходцева Е.М.",25,null,35,null,60]
["10.","Фирсина А.Е.",24,null,32,null,56]
["11.","Коротких Л.Г.",7,null,25,null,32]
["12.","Ямзина И.В.",7,null,20,null,27]
["13.","Рыбкина М.В.",0,null,20,null,20]
[]
[]
[]
["Окружающий мир - д/с"]
["№","ФИО"]
["1.","Вдовина Т.И.",36,null,19,null,{"$f":"SUM(C143:F143)","v":55}]
[null,"Давыдова О.Л."]
["2.","Сырых Н.Ф.",30,null,13,null,{"$f":"SUM(C145:F145)","v":43}]
[]
["Окружающий мир - осн. школа"]
["№","ФИО"]
["1.","Грязнова Н.Г.",29,null,16,null,{"$f":"SUM(C149:F149)","v":45}]
[]
[]
[]
[]
[]
[]
["География"]
["№","ФИО"]
["1.","Кирина И.А.",12,null,46,null,{"$f":"SUM(C158:F158)","v":58}]
["2.","Топчеева Н.В. ",11,null,35,null,{"$f":"SUM(C159:F159)","v":46}]

{"sheet":"Лист3","index":2,"n_rows":0,"n_cols":0,"rows_kept":0}